Cogmind - Beta 16.1 @@@ ROGUE MODE // 2026.03.02 @ 15:55:45 Player: Ceorik Result: Self-destructed Performance ------------- Evolutions (2) 1000 Regions Visited (3) 600 Robots Destroyed (33) 165 Value Destroyed (1141) 1141 Prototype IDs (1) 20 Alien Tech Used (0) 0 Bonus (0) 0 TOTAL SCORE: 2926 Bonus ------- None Cogmind --------- Core Integrity 419/550 Matter 240/300 Energy 160/160 System Corruption 0% Temperature Danger (486) Movement Treading (247) Ox1 Location -8/Materials Parts ------- > --- POWER (1) -------- Light Nuclear Core > --- PROPULSION (4) --- Light Treads Light Treads Spiked Treads Armored Treads > --- UTILITY (4) ------ Huge Storage Unit Makeshift Light Armor Plating Makeshift Light Armor Plating > --- WEAPON (2) ------- Advanced Beam Cannon Heavy Particle Cannon > --- INVENTORY (25) --- Subdweller Monowheel Medium Matter Pod (100) Subdweller Optics Sensor Array Improved Light Armor Plating Makeshift Kinetic Plating Scrap Shield System Shield High-powered Tractor Beam Subdweller Laser Subdweller Beam Cannon Subdweller Beam Cannon Light Cannon Light Cannon Grenade Launcher Mini Grenade Launcher Makeshift Hammer Peak State ------------ > --- POWER ------------ Light Nuclear Core > --- PROPULSION ------- Light Treads Spiked Treads Spiked Treads Armored Treads > --- UTILITY ---------- Improved Heat Sink Huge Storage Unit Makeshift Light Armor Plating Makeshift Light Armor Plating > --- WEAPON ----------- Advanced Beam Cannon Advanced Beam Cannon > --- INVENTORY -------- Light Treads Spiked Treads Subdweller Monowheel Disposable Heat Sink Medium Matter Pod Subdweller Optics Sensor Array Improved Light Armor Plating Makeshift Kinetic Plating Scrap Shield System Shield High-powered Tractor Beam Subdweller Laser Subdweller Beam Cannon Subdweller Beam Cannon Heavy Particle Cannon Light Cannon Light Cannon Grenade Launcher Mini Grenade Launcher Makeshift Hammer [Rating: 33] Favorites ----------- Power Light Ion Engine Engine Light Ion Engine Power Core Light Nuclear Core Propulsion Wheel Treads Spiked Treads Wheel Wheel Utility Huge Storage Unit Device Sensor Array Storage Huge Storage Unit Protection Makeshift Light Armor Plating Weapon Battle Cannon Energy Gun Medium Laser Energy Cannon Advanced Beam Cannon Ballistic Cannon Battle Cannon Impact Weapon Makeshift Hammer Build | -11 -10 -10 -8 ------- Run | Yrd Mat Sub Mat Slots Evolved 4 | . . . 4 Power . | . . . . Propulsion 2 | . . . 2 Utility 2 | . . . 2 Weapon . | . . . . Parts Attached 49 | 6 7 15 21 Power 8 | 1 . 3 4 Engine 5 | 1 . 3 1 Core 3 | . . . 3 Reactor . | . . . . Propulsion 15 | 2 2 4 7 Treads 8 | 2 . 1 5 Leg . | . . . . Wheel 7 | . 2 3 2 Hover . | . . . . Flight . | . . . . Utility 12 | 1 2 3 6 Device 6 | . 1 1 4 Storage 2 | 1 1 . . Processor . | . . . . Hackware . | . . . . Protection 4 | . . 2 2 Artifact . | . . . . Weapon 14 | 2 3 5 4 Energy Gun 5 | 2 3 . . Energy Cannon 4 | . . . 4 Ballistic Gun . | . . . . Ballistic Cannon 4 | . . 4 . Launcher . | . . . . Special Weapon . | . . . . Impact Weapon 1 | . . 1 . Slashing Weapon . | . . . . Piercing Weapon . | . . . . Special Melee Weapon . | . . . . Unidentified Prototypes 1 | . . . 1 Parts Lost 18 | . . 7 11 Power 4 | . . 2 2 Propulsion 8 | . . 3 5 Utility 3 | . . . 3 Weapon 3 | . . 2 1 Highest Loss Streak 7 | . . 3 7 To Critical Strikes . | . . . . Average Backups 20 | . 7 22 21 Power . | . 1 . . Propulsion 2 | . 1 3 3 Utility 8 | . 3 9 8 Weapon 7 | . 1 8 8 Tool/Special . | . . . . Unused Backups 17 | . . 4 13 Power . | . . . . Propulsion . | . . . . Utility 9 | . . 3 6 Weapon 8 | . . 1 7 Tool/Special . | . . . . Average Slot Usage (%) 99 | . 95 99 99 Engine 11 | . 14 14 4 Core 1 | . . . 4 Treads 8 | . 14 3 18 Wheel 21 | . 13 24 17 Device 13 | . 9 13 13 Storage 12 | . 14 14 9 Protection 3 | . . . 12 Energy Gun 3 | . 28 1 . Energy Cannon 1 | . . . 4 Ballistic Cannon 15 | . . 21 7 Impact Weapon 5 | . . 5 6 Peak Build Rating 33 | 6 8 19 33 Average Rating 16 | 4 7 14 27 On Entrance 7 | . 6 8 16 Avg Prop Armor Cover (%) 9 | . 13 6 16 Naked Turns . | . . . . Heaviest Build 108 | 11 88 95 108 Greatest Support 80 | 40 40 30 80 Greatest Overweight (x) 10 | . 8 9 10 Average Overweight (x) 5 | . 4 6 5 Largest Inventory Capacity 25 | 8 25 25 25 Average Capacity 24 | 6 19 25 25 Most Carried 25 | 1 14 25 25 Average Carried 21 | . 7 23 22 Final Capacity 25 | 8 25 25 25 Final Carried 20 | 1 13 20 18 Class Distribution -------------------- 87% | Mutant 12% | Derelict-Mutant Dominant Class ---------------- Mutant | -10/Materials Mutant | -10/Subcaves Mutant | -8/Materials Resources | -11 -10 -10 -8 ----------- Run | Yrd Mat Sub Mat Matter Collected 1786 | 260 209 581 736 Remotely . | . . . . Salvage Created 1266 | 108 206 217 735 Parts 53 | 5 11 14 23 Haulers Intercepted 1 | . . . 1 Recyclers Shooed 3 | . 1 . 2 Parts Field Recycled . | . . . . Retrieved Matter . | . . . . Parts Self-Destructed 16 | . . 16 . Prevented . | . . . . Parts Restored . | . . . . Kills | -11 -10 -10 -8 ------- Run | Yrd Mat Sub Mat Combat Hostiles Destroyed 22 | . 3 7 12 Melee 2 | . . . 2 Guns 5 | . 2 3 . Cannons 11 | . . 4 7 Classes Destroyed 9 | 2 3 1 3 Worker 4 | . 3 . 1 Tunneler 1 | 1 . . . Hauler 1 | . . . 1 Recycler 2 | 1 . . 1 Operator 2 | . . . 2 Watcher 1 | . 1 . . Grunt 14 | . 3 . 11 Sentry 1 | . . . 1 Subdweller 7 | . . 7 . Best Kill Streak 3 | 2 2 2 3 Combat Bots Only 3 | . 1 2 3 Max Kills in Single Turn 1 | 1 1 1 1 Gunslinging . | . . . . Exploded . | . . . . Melee 1 | . . . 1 Uniques/NPCs Destroyed . | . . . . Combat | -11 -10 -10 -8 -------- Run | Yrd Mat Sub Mat Hostile Shots Fired 206 | . 13 55 138 Missed 44 | . 3 16 25 Hits 162 | . 10 39 113 Projectile 162 | . 10 39 113 Critical Strikes 5 | . . . 5 Damage Taken 2922 | 4 123 900 1895 Core 295 | . 27 137 131 Absorbed by Shields . | . . . . Ignored by Resistances 6 | . . 6 . Core Remaining (%) 67 | 100 . 34 . Volleys Fired 120 | 3 27 30 60 Largest 2 | 2 2 2 2 Hottest 136 | 80 100 100 136 Shots Fired 206 | 6 54 58 88 Gun 82 | 6 54 22 . Cannon 124 | . . 36 88 Launcher . | . . . . Special . | . . . . Kinetic 50 | . . 36 14 Thermal 153 | 3 54 22 74 Explosive . | . . . . Electromagnetic 3 | 3 . . . Robot Hit Streak 18 | 3 5 18 13 Robot Miss Streak 3 | 1 3 1 2 Penetration Max . | . . . . Secondary Targets 1 | . . 1 . Max Gunslinging Chain 1 | . . 1 . Shots Hit Robots 155 | 4 32 51 68 Core Hits 47 | 3 11 13 20 Critical Kills 3 | . . . 3 Critical Parts Destroyed 2 | . . . 2 Critical Strikes 18 | . 7 5 6 Burn 11 | . 7 4 . Blast 2 | . . 1 1 Smash 5 | . . . 5 Melee Attacks 43 | . . 10 33 Impact 43 | . . 10 33 Slashing . | . . . . Piercing . | . . . . Sneak Attacks 6 | . . . 6 Combat Hostiles . | . . . . Follow-up Attacks . | . . . . Damage Inflicted 3395 | 77 399 763 2156 Guns 703 | 40 399 264 . Cannons 1551 | . . 499 1052 Explosions 37 | 37 . . . Melee 1104 | . . . 1104 Ramming . | . . . . Kinetic 582 | . . 499 83 Thermal 1669 | 37 399 264 969 Explosive . | . . . . Electromagnetic 40 | 40 . . . Impact 1104 | . . . 1104 Slashing . | . . . . Piercing . | . . . . Highest Corruption . | . . . . Average Corruption . | . . . . Corruption Purged . | . . . . Corruption Blocked . | . . . . Overload Shots . | . . . . Overflow Damage 368 | . . . 368 Projectiles . | . . . . Explosions . | . . . . Melee 368 | . . . 368 Knockbacks 11 | . . 1 10 Impact 7 | . . . 7 Kinetic 4 | . . 1 3 Secondary . | . . . . Self-Inflicted Damage 5 | 5 . . . Shots 1 | 1 . . . Rammed . | . . . . Targets Rammed . | . . . . Kicked . | . . . . Crushed . | . . . . Highest Temperature 486 | 36 282 3 486 Average Temperature 107 | 20 86 2 126 Received Heat Transfer 1317 | . 72 156 1089 Effects 1 | . . . 1 Energy Bleed 1 | . . . 1 Siege Activations . | . . . . Martial Activations . | . . . . Shielding Activations . | . . . . Robots Disrupted . | . . . . Combat Hostiles . | . . . . Robots Corrupted 4 | . . . 4 Combat Hostiles 3 | . . . 3 Parts Fried 4 | . . . 4 Impact Corruptions 12 | . . . 12 Robots Melted 1 | . 1 . . Combat Hostiles 1 | . 1 . . Parts Melted 5 | . 3 2 . Heat Transferred 4564 | 50 1702 1073 1739 Parts Sabotaged . | . . . . Parts Stolen . | . . . . Parts Stripped . | . . . . Power Chain Reactions 1 | 1 . . . Alert | -11 -10 -10 -8 ------- Run | Yrd Mat Sub Mat Maximum Alert Level 1 | . . . 1 Low Security (%) 98 | 100 100 . 98 Level 1 1 | . . . 1 Level 2 . | . . . . Level 3 . | . . . . Level 4 . | . . . . Level 5 . | . . . . High Security . | . . . . Max Security . | . . . . Peak Influence 261 | 5 55 . 261 Initial . | . . . . Average 24 | . 9 . 32 Influence Increases 635 | 10 136 . 489 Destroy 0b10 Robot/C 300 | . 60 . 240 Destroy 0b10 Robot/NC 55 | 10 20 . 25 Destroy Leader 54 | . 12 . 42 Successful Hack 30 | . 25 . 5 Anti-Garrison Action 150 | . . . 150 Destroy Structure 16 | . 4 . 12 Partial Spotted 15 | . . . 15 Lose Combat Pursuer 15 | . 15 . . Influence Decreases 376 | 10 136 . 230 Time Decay 286 | 10 136 . 140 Lost Part 90 | . . . 90 Squads Dispatched 6 | . 1 . 5 Investigation 1 | . . . 1 Extermination . | . . . . Reinforcement 3 | . 1 . 2 Assault 2 | . . . 2 Garrison . | . . . . Intercept . | . . . . Searches Triggered . | . . . . Construction Impeded . | . . . . Haulers Reinforced . | . . . . Active Scanning Responses . | . . . . Cargo Convoy Interrupts . | . . . . Stealth | -11 -10 -10 -8 --------- Run | Yrd Mat Sub Mat Distress Signals 3 | . 1 . 2 Communications Jammed . | . . . . Distress Signals . | . . . . Times Spotted 44 | . 8 7 29 Peak Tracking Total 6 | . 2 2 6 Tactical Retreats 1 | . 1 . . Traps | -11 -10 -10 -8 ------- Run | Yrd Mat Sub Mat Traps Triggered 2 | . 1 . 1 Indirectly . | . . . . Trap Hack Attempts . | . . . . Triggered . | . . . . Disarmed . | . . . . Reprogrammed . | . . . . Reused . | . . . . Traps Extracted . | . . . . Installed . | . . . . Triggered . | . . . . Machines | -11 -10 -10 -8 ---------- Run | Yrd Mat Sub Mat Machines Disabled 1 | . . . 1 Max in Single Turn 1 | . . . 1 Garrison Access 1 | . . . 1 Machines Repaired . | . . . . Machines Dismantled . | . . . . Machines Sabotaged . | . . . . Overloaded Fab Kills . | . . . . Hacking | -11 -10 -10 -8 --------- Run | Yrd Mat Sub Mat Machines Accessed 9 | . 3 2 4 Terminals 6 | . 3 . 3 Fabricators . | . . . . Repair Stations . | . . . . Recycling Units 1 | . . . 1 Scanalyzers . | . . . . Garrison Access . | . . . . Total Hacks 24 | . 12 3 9 Successful 14 | . 6 3 5 Failed 10 | . 6 . 4 Catastrophic 1 | . 1 . . Database Lockouts . | . . . . Manual 15 | . 11 . 4 Terminals 18 | . 12 . 6 Fabricators . | . . . . Repair Stations . | . . . . Recycling Units 3 | . . . 3 Scanalyzers . | . . . . Garrison Access . | . . . . Terminal Hacks 8 | . 4 3 1 Record 1 | . . 1 . Robot Analysis 3 | . 3 . . Open Door 1 | . . 1 . Branch Access Points 1 | . 1 . . Alert Level 1 | . . . 1 Release Object 1 | . . 1 . Fabricator Hacks . | . . . . Repair Station Hacks . | . . . . Recycling Unit Hacks 2 | . . . 2 Report Inventory 1 | . . . 1 Retrieve Components 1 | . . . 1 Scanalyzer . | . . . . Garrison Access Hacks . | . . . . Unauthorized Hacks 4 | . 2 . 2 Terminals 4 | . 2 . 2 Botnet 4 | . 2 . 2 Fabricators . | . . . . Repair Stations . | . . . . Recycling Units . | . . . . Scanalyzers . | . . . . Garrison Access . | . . . . Data Cores Recovered 2 | . . . 2 Used . | . . . . Hacking Detections 6 | . 3 . 3 Full Trace Events . | . . . . Feedback Events . | . . . . Feedback Blocked . | . . . . Robot Schematics Acquired . | . . . . Robots Built . | . . . . Authchips . | . . . . Time . | . . . . Total Robot Build Rating . | . . . . Part Schematics Acquired . | . . . . Parts Built . | . . . . Authchips . | . . . . Time . | . . . . Total Part Build Rating . | . . . . Part Studies Acquired . | . . . . Parts Repaired . | . . . . Time . | . . . . Parts Recycled . | . . . . Recycled Matter . | . . . . Retrieved Matter . | . . . . Retrieved Components 3 | . . . 3 Parts Scanalyzed . | . . . . Part Schematics Acquired . | . . . . Parts Damaged . | . . . . Bothacking | -11 -10 -10 -8 ------------ Run | Yrd Mat Sub Mat Used RIF Installer . | . . . . Robots Hacked . | . . . . Non-combat . | . . . . Combat . | . . . . Robot Hacks Applied . | . . . . Relay Couplers Released . | . . . . Fabnet Peak Effective % . | . . . . Robots Rewired . | . . . . Allies Hacked . | . . . . Hacks Repelled . | . . . . Allies | -11 -10 -10 -8 -------- Run | Yrd Mat Sub Mat Total Allies . | . . . . Largest Group . | . . . . Highest-Rated Group . | . . . . Highest-Rated Ally . | . . . . Total Orders . | . . . . Ally Attacks . | . . . . Total Damage . | . . . . Kills . | . . . . Allies Corrupted . | . . . . Allies Melted . | . . . . Intel | -11 -10 -10 -8 ------- Run | Yrd Mat Sub Mat Active Infowar (turns) 6546 | . 571 4405 1570 Sensors 5783 | . 571 3642 1570 Terrain 763 | . . 763 . Traps 718 | . . . 718 Robot Analysis Total 3 | . 3 . . Derelict Logs Recovered 2 | . . 2 . Drone Launches . | . . . . Drone Recoveries . | . . . . Exploration | -11 -10 -10 -8 ------------- Run | Yrd Mat Sub Mat Turns Passed 7451 | 109 823 4581 1938 Spaces Moved 2798 | 62 357 1908 471 Core 8 | 8 . . . Treads 150 | 54 94 . 2 Legs . | . . . . Wheels 2640 | . 263 1908 469 Hover . | . . . . Flight . | . . . . Fastest Speed 50 | 50 140 119 116 Average Speed 171 | 145 165 177 157 Slowest Speed 252 | 160 200 215 252 Overloaded Moves . | . . . . Propulsion Burnouts . | . . . . Robots Hopped . | . . . . Potential Cave-ins 3 | . . . 3 Cave-ins Triggered . | . . . . Exploration Rate (%) 40 | 5 43 87 27 Regions Visited 3 Branch Regions 1 Pre-discovered Areas . | . . . . Known Exits Taken . | . . . . Unknown Exits Taken 3 | 1 1 1 . Scrap Searched 6 | . . 6 . Spaces Dug 15 | . . . 15 Terrain Destroyed 18 | 2 . . 16 Melee 6 | . . . 6 Projectile 10 | . . . 10 AOE 2 | 2 . . . Terrain Rammed . | . . . . Walls Destroyed . | . . . . Machines Disabled . | . . . . Actions | -11 -10 -10 -8 --------- Run | Yrd Mat Sub Mat Total 5169 | 72 531 3030 1536 Wait 2021 | 1 126 985 909 Move 2795 | 61 356 1907 471 Hop . | . . . . Pick Up 50 | 1 9 26 14 Fast Attach 16 | 6 5 1 4 Attach 23 | . 1 8 14 Detach 6 | . 3 1 2 Swap 74 | . 4 46 24 Drop 21 | . . 16 5 Fire 120 | 3 27 30 60 Melee 43 | . . 10 33 Ram . | . . . . Kick . | . . . . Crush . | . . . . Escape Stasis . | . . . . Rewire . | . . . . Trap . | . . . . Miscellaneous . | . . . . Route ------- -11/Scrapyard -10/Materials (discovered 5 exits: [*Mat x2] / *Min x2 / *Sub) -10/Subcaves -8/Materials (discovered 1 exit: [*Sto]) History --------- Turn | Location | Event 2 | -11/Scrapyard | Met Revision 17 7 | -11/Scrapyard | Discovered new exit (range 14) 110 | -11/Scrapyard | Entered Materials 318 | -10/Materials | Build established: Mutant 395 | -10/Materials | Discovered new exit (range 10) 425 | -10/Materials | Discovered new exit (range 16) 833 | -10/Materials | Identified exit to Mines 854 | -10/Materials | Discovered new exit (range 16) 922 | -10/Materials | Discovered new exit (range 9) 933 | -10/Materials | Entered Subcaves 1104 | -10/Subcaves | Disturbed a concealed Subdweller 1281 | -10/Subcaves | Shifting Twisted Machinery released Battle Rifle 1329 | -10/Subcaves | Shifting Twisted Machinery released Mak. Kinetic Plating 1368 | -10/Subcaves | Disturbed a concealed Subdweller 1741 | -10/Subcaves | Shifting Twisted Machinery released Mak. Light Armor Plating 1756 | -10/Subcaves | Shifting Twisted Machinery released Spk. Treads 2365 | -10/Subcaves | Shifting Twisted Machinery released Sub. Laser 4223 | -10/Subcaves | Core integrity fell below 50% 4328 | -10/Subcaves | Learned Materials security intel 4721 | -10/Subcaves | Learned Materials stockpile data 5279 | -10/Subcaves | Lost 3 parts (1n2w) 5496 | -10/Subcaves | Discovered new exit (range 13) 5514 | -10/Subcaves | Entered Materials 5514 | -8/Materials | Evolved 4 slots: Propulsion x2, Utility x2 5816 | -8/Materials | Build established: Derelict-Mutant 6647 | -8/Materials | Build established: Mutant 7146 | -8/Materials | Discovered new exit (range 8) 7452 | -8/Materials | Self-destructed Last Messages --------------- 07370_ Acquired data core, extracted dynamic key. 07378_ K-01 Serf destroyed. 07382_ Wheel destroyed. 07386_ Critical hit (Burn: +37). 07396_ G-47 Trooper destroyed. 07402_ Critical hit (Burn: +37). 07408_ Lgt. Nuclear Core destroyed. 07408_ Lgt. Armor Plating destroyed. 07416_ Imp. Heat Sink destroyed. 07418_ Spk. Treads destroyed. 07422_ ALERT: Garrison Access compromised, dispatching multiple assault carriers. 07422_ Garrison Access disabled. 07424_ Critical hit (Burn: +37). 07428_ Spk. Treads destroyed. 07434_ Adv. Beam Cannon destroyed. 07437_ Disposable Heat Sink melts away. 07437_ M-13 Machinist repairs G-50 Soldier. 07439_ G-47 Trooper destroyed. Map ----- +----------------------------------------------------+ | ??????????????????????????#= ####???????????????? | | ??????????????????????????# #??????????????????? | | ???????????????????######## ############???????? | | ????? ############## ![ ?????? | | ???? % % ?????? | | ???? < ?????? | | ???? %################ ??????? | | ???????############# #???????????????????????? | | ??????????########### ##########???????????????? | | ??????????# # # #???????????????? | | ??????????# T # # T #???????????????? | | ??????????# = # + #???????????????? | | ??????????# ] # # [ #???????????????? | | ??????????# """ !! + # #???????????????? | | ??????????# """ !! # # """#???????????????? | | ??????????# """ ! # # """#???????????????? | | ??????????# # # ] """#???????????????? | | ??????????######## ## # #???????????????? | | ?????????????????#### ##########???????????????? | | ????????????????????# #????????????????????????? | | ????????????????????# #????????????????????????? | | ????????????????????# #????????????????????????? | | ????????????????????# #????????????????????????? | | ????????????????????# #????????????????????????? | | ??????????????????### ############+##??????????? | | ??????????????????# @%=%% * #?????? | | ??????????????????# g %* C #??]??? | | ??????????????????# w w m "k #?????? | | ??????????????????########;###### "G" +?????? | | ??????????????????????????##????? " " ??????????? | | ?????????????????????????????????? ??????????? | | ??????????????????????????????????? ????????? | | ???????????????????????????????????? ????????? | | ????????????????????????????????????? ????????? | | ??????????????????????????????????????!! ???????? | | ??????????????????????????????????????!! ???????? | | ??????????????????????????????????????? ???????? | | ?????????????????????????????????????????????????? | | ?????????????????????????????????????????????????? | | ?????????????????????????????????????????????????? | | ?????????????????????????????????????????????????? | | ?????????????????????????????????????????????????? | | ?????????????????????????????????????????????????? | | ?????????????????????????????????????????????????? | | ?????????????????????????????????????????????????? | | ?????????????????????????????????????????????????? | | ?????????????????????????????????????????????????? | | ?????????????????????????????????????????????????? | | ?????????????????????????????????????????????????? | | ???????!?????????????????????????????????????????? | +----------------------------------------------------+ Best States ------------- Heat Dissipation 45 Coolant Potential 50 Energy Generation 15 Energy Capacity 250 Matter Stores 300 Matter Capacity 300 Sight Range 16 Robot Scan Range 14 Terrain Scan Range 14 Terrain Scan Density 10 Armor Coverage 350 Resistance: KI 10 Evasion (%) 40 Recoil Reduction 4 Item Schematics ----------------- None Robot Schematics ------------------ None Fabricated ------------ Nothing Repaired ---------- Nothing Studied --------- None Alien Tech Used ----------------- None Achievements -------------- None Challenges ------------ None Game ------ Seed PropulsionPhysicsCartridge Manual? 0 Play Time 00:48:42 Cumulative 93.2 hours Start 2026.03.01 @ 21:51:15 End 2026.03.02 @ 15:55:45 Sessions 4 Manual Loads 0 Difficulty Rogue Special Mode None Game No. 90 Rogue 90 Adventurer 0 Explorer 0 Win Type - Total 0 Types 0/0/0/0/0/0/0/0/0/0 Lore% 61 Gallery% 47 Achievement% 39 Wizard Run 0 Options --------- Layout 1 ASCII 0 Keyboard 0 Movement Mouse Keybinds 0 Fullscreen 1 Font 24/Swanston Map View 50x35 Zoom Use 0% Tactical HUD 1 Map Filters NONE Filters NONE Steam 1 RUN: 4191c3f2-339c-40ff-aeb1-c2bb20821f72